fUST/lending_fUST_20250207
["ID","MTS","AMOUNT","RATE_DAILY","PERIOD"]
[351996520,1738871453890,-500.0,0.00014383,2]
[351996521,1738871453900,-155.38335,0.00014383,2]
[351996522,1738871453910,-155.38335,0.00014383,2]
[351996523,1738871453920,-500.0,0.00014383,2]
[351996524,1738871453931,-500.0,0.00014383,2]
[351996525,1738871453940,-500.0,0.00014383,2]
[351996526,1738871453950,-272.96103338,0.00014383,2]
[351996527,1738871454093,-227.03896662,0.00014383,2]
[351996528,1738871454104,-500.0,0.00014383,2]
[351996529,1738871454113,-363.2,0.0001439,2]
[351996530,1738871454123,-150.0,0.0001444,2]
[351996531,1738871454133,-856.00057826,0.0001444,2]
[351996532,1738871454245,-500.0,0.00013698,2]
[351996533,1738871454259,-195.25542174,0.0001444,2]
[351996534,1738871454278,-334.527,0.0001444,2]
[351996535,1738871454289,-396.0,0.0001444,2]
[351996536,1738871454302,-500.0,0.0001452,2]
[351996537,1738871454312,-503.14,0.0001452,2]
[351996538,1738871454322,-500.0,0.0001452,2]
[351996539,1738871454331,-500.0,0.0001452,2]
[351996540,1738871454341,-177.42,0.0001452,2]
[351996541,1738871454351,-500.0,0.0001452,2]
[351996542,1738871454360,-601.53,0.0001452,2]
[351996543,1738871454371,-500.0,0.0001452,2]
[351996544,1738871454380,-233.799635,0.0001452,2]
[351996545,1738871454390,-233.799635,0.0001452,2]
[351996546,1738871454400,-500.0,0.0001452,2]
[351996547,1738871454410,-500.0,0.0001452,2]
[351996548,1738871454419,-151.0,0.0001452,2]
[351996549,1738871454429,-500.0,0.0001452,2]
[351996550,1738871454439,-151.0,0.0001452,2]
[351996551,1738871454448,-151.0,0.0001452,2]
[351996552,1738871454458,-500.0,0.0001452,2]
[351996553,1738871454468,-500.0,0.0001452,2]
[351996554,1738871454481,-980.46,0.0001452,2]
[351996555,1738871454492,-2221.42,0.0001452,2]
[351996556,1738871454502,-500.0,0.0001452,2]
[351996557,1738871454512,-500.0,0.0001452,2]
[351996558,1738871454522,-500.0,0.0001452,2]
[351996559,1738871454531,-500.0,0.0001452,2]
[351996560,1738871454544,-500.0,0.0001452,2]
[351996561,1738871454554,-1008.76,0.0001452,2]
[351996562,1738871454564,-3673.56630327,0.0001452,2]
[351996563,1738871454848,-151.0,0.00013835,2]
[351996564,1738871454857,-151.0,0.00013972,2]
[351996565,1738871454867,-151.0,0.00014109,2]
[351996566,1738871454878,-151.0,0.00014112,2]
[351996567,1738871454888,-2005.4,0.0001452,2]
[351996568,1738871454902,-5634.28369673,0.0001452,2]
[351996569,1738871454913,-151.0,0.0001452,2]
[351996570,1738871454924,-520.16,0.0001452,2]
[351996571,1738871454935,-523.07,0.0001452,2]
[351996572,1738871454945,-5254.56,0.0001452,2]
[351996573,1738871454956,-500.0,0.0001452,2]
[351996574,1738871454966,-176.094151,0.0001452,2]
[351996575,1738871454977,-500.0,0.0001452,2]
[351996576,1738871454987,-1405.64,0.0001452,2]
[351996577,1738871454998,-176.094151,0.0001452,2]
[351996578,1738871455009,-500.0,0.0001452,2]
[351996579,1738871455019,-500.0,0.0001452,2]
[351996580,1738871455030,-500.0,0.0001452,2]
[351996581,1738871455040,-500.0,0.0001452,2]
[351996582,1738871455053,-172.345415,0.0001452,2]
[351996583,1738871455062,-172.345415,0.0001452,2]
[351996584,1738871455073,-151.0,0.0001452,2]
[351996585,1738871455082,-890.2,0.0001452,2]
[351996586,1738871455093,-176.303969,0.0001452,2]
[351996587,1738871455104,-176.303969,0.0001452,2]
[351996588,1738871455114,-500.0,0.0001452,2]
[351996589,1738871455125,-151.0,0.0001452,2]
[351996590,1738871455134,-849.72,0.0001452,2]
[351996591,1738871455145,-2750.45,0.0001452,2]
[351996592,1738871455155,-872.44,0.0001452,2]
[351996593,1738871455165,-1274.47,0.0001452,2]
[351996594,1738871455175,-500.0,0.0001452,2]
[351996595,1738871455185,-574.47,0.0001452,2]
[351996596,1738871455195,-500.0,0.0001452,2]
[351996597,1738871455206,-4124.27,0.0001452,2]
[351996598,1738871455217,-1092.79,0.0001452,2]
[351996599,1738871455227,-500.0,0.0001452,2]
[351996600,1738871455237,-500.0,0.0001452,2]
[351996601,1738871455248,-500.0,0.0001452,2]
[351996602,1738871455259,-525.02,0.0001452,2]
[351996603,1738871455269,-500.0,0.0001452,2]
[351996604,1738871455279,-1000.0,0.00014521,2]
[351996605,1738871455289,-151.0,0.000146,2]
[351996606,1738871455303,-320.0,0.0001461,2]
[351996607,1738871455313,-1200.0,0.00014624,2]
[351996608,1738871455324,-1784.33964363,0.00014642,2]
[351996609,1738871455335,-151.0,0.00014657,2]
[351996610,1738871455345,-500.0,0.00014657,2]
[351996611,1738871455355,-503.14,0.00014657,2]
[351996612,1738871455365,-366.5319,0.00014657,2]
[351996613,1738871455375,-366.5319,0.00014657,2]
[351996614,1738871455385,-500.0,0.00014657,2]
[351996615,1738871455395,-500.0,0.00014657,2]
[351996616,1738871455405,-500.0,0.00014657,2]
[351996617,1738871455415,-601.53,0.00014657,2]
[351996618,1738871455425,-500.0,0.00014657,2]
[351996619,1738871455435,-606.8,0.00014657,2]
[351996620,1738871455444,-495.53857781,0.00014657,2]
[351996621,1738871455454,-500.0,0.00014657,2]
[351996622,1738871455464,-500.0,0.00014657,2]
[351996623,1738871455474,-2221.42,0.00014657,2]
[351996624,1738871455484,-151.0,0.00014657,2]
[351996625,1738871455494,-500.0,0.00014657,2]
[351996626,1738871455505,-151.0,0.00014657,2]
[351996627,1738871455515,-500.0,0.00014657,2]
[351996628,1738871455526,-500.0,0.00014657,2]
[351996629,1738871455536,-500.0,0.00014657,2]
[351996630,1738871455547,-1008.76,0.00014657,2]
[351996631,1738871455558,-11313.25,0.00014657,2]
[351996632,1738871455568,-520.16,0.00014657,2]
[351996633,1738871455579,-523.07,0.00014657,2]
[351996634,1738871455590,-5254.56,0.00014657,2]
[351996635,1738871455599,-500.0,0.00014657,2]
[351996636,1738871455609,-500.0,0.00014657,2]
[351996637,1738871455620,-1405.64,0.00014657,2]
[351996638,1738871455630,-500.0,0.00014657,2]
[351996639,1738871455640,-451.75836387,0.00014657,2]
[351996640,1738871455658,-48.24163613,0.00014657,2]
[351996641,1738871455669,-500.0,0.00014657,2]
[351996642,1738871455679,-500.0,0.00014657,2]
[351996643,1738871455690,-890.2,0.00014657,2]
[351996644,1738871455699,-500.0,0.00014657,2]
[351996645,1738871455711,-439.77232691,0.00014657,2]
[351996646,1738871455724,-409.94767309,0.00014657,2]
[351996647,1738871455735,-2750.45,0.00014657,2]
[351996648,1738871455747,-151.0,0.00014657,2]
[351996649,1738871455758,-872.44,0.00014657,2]
[351996650,1738871455768,-1274.47,0.00014657,2]
[351996651,1738871455777,-500.0,0.00014657,2]
[351996652,1738871455787,-574.47,0.00014657,2]
[351996653,1738871455799,-500.0,0.00014657,2]
[351996654,1738871455810,-4124.27,0.00014657,2]
[351996655,1738871455820,-1092.79,0.00014657,2]
[351996656,1738871455831,-500.0,0.00014657,2]
[351996657,1738871455841,-155.38335,0.00014657,2]
[351996658,1738871455851,-155.38335,0.00014657,2]
[351996659,1738871455862,-500.0,0.00014657,2]
[351996660,1738871455878,-154.72,0.00014657,2]
[351996661,1738871455892,-500.0,0.00014657,2]
[351996662,1738871455901,-151.0,0.000147,2]
[351996663,1738871455911,-1000.0,0.0001476,2]
[351996664,1738871455921,-151.0,0.0001476,2]
[351996665,1738871455934,-231.36579,0.0001476,2]
[351996666,1738871455952,-13262.49839917,0.00014787,2]
[351996667,1738871455962,-160.0,0.00014789,2]
[351996668,1738871455971,-20333.07427236,0.00014789,5]
[351996669,1738871455982,-167602.81036035,0.0001479,5]
[351996670,1738871455991,-115533.56560544,0.0001479,2]
[351996671,1738871456005,-14361.29999999,0.0001479,2]
[351996672,1738871456103,-2086.8534869,0.0001479,2]
[351996673,1738871456244,-500.0,0.00013698,2]
[351996674,1738871456255,-151.0,0.00014383,2]
[351996675,1738871456264,-151.0,0.00014657,2]
[351996676,1738871456273,-1116.55,0.0001479,2]
[351996677,1738871456287,-1457.16896114,0.0001479,2]
[351996689,1738872353172,-300.0,0.00012765,2]
[351996690,1738872353194,-43.55650701,0.00012766,2]
[351996695,1738872437117,-300.0,0.00012765,2]
[351996696,1738872437144,-415.10260246,0.00012766,2]
[351996697,1738872437237,-200.9687589,0.00012766,2]
[351996698,1738872569168,-300.0,0.00012765,2]
[351996699,1738872569191,-776.79907987,0.00012766,2]
[351996743,1738872632651,-300.0,0.00012765,2]
[351996745,1738872632661,-9315.5,0.00012766,2]
[351996756,1738872632754,-6192.26510196,0.00012766,2]
[351996758,1738872632764,-282.54059356,0.000128,2]
[351996760,1738872632774,-500.0,0.0001315,2]
[351996762,1738872632783,-633.02448009,0.00013598,2]
[351996764,1738872632793,-7438.69753278,0.00013682,2]
[351996766,1738872632803,-584.87020492,0.00013697,2]
[351996768,1738872632812,-500.0,0.00013698,2]
[351996771,1738872632822,-498.31219008,0.00013698,2]
[351996773,1738872632832,-514.07897582,0.00013698,2]
[351996775,1738872632842,-268.32934947,0.00013698,2]
[351996777,1738872632851,-504.28613947,0.00013698,2]
[351996779,1738872632860,-500.0,0.00013698,2]
[351996781,1738872632869,-500.0,0.00013698,2]
[351996783,1738872632879,-500.0,0.00013698,2]
[351996785,1738872632889,-504.80851235,0.00013698,2]
[351996787,1738872632898,-500.0,0.00013698,2]
[351996789,1738872632908,-500.0,0.00013698,2]
[351996791,1738872632917,-500.0,0.00013698,2]
[351996793,1738872632927,-500.0,0.00013698,2]
[351996795,1738872632936,-506.40219388,0.00013698,2]
[351996797,1738872632946,-500.0,0.00013698,2]
[351996799,1738872632957,-500.0,0.00013698,2]
[351996801,1738872632967,-579.08,0.00013698,2]
[351996803,1738872632976,-500.0,0.00013698,2]
[351996805,1738872632986,-500.0,0.00013698,2]
[351996807,1738872632995,-500.0,0.00013698,2]
[351996810,1738872633005,-500.0,0.00013698,2]
[351996811,1738872633017,-500.0,0.00013698,2]
[351996814,1738872633027,-500.0,0.00013698,2]
[351996816,1738872633037,-500.0,0.00013698,2]
[351996818,1738872633047,-77.91345616,0.00013698,2]
[351997365,1738872638636,-422.08654384,0.00013698,2]
[351997367,1738872638646,-218.19398366,0.00013698,2]
[351997376,1738872638750,-288.75624615,0.00013698,2]
[351997378,1738872638760,-500.0,0.00013698,2]
[351997380,1738872638769,-500.0,0.00013698,2]
[351997381,1738872638779,-271.42458975,0.00013698,2]
[351997383,1738872638789,-506.56351704,0.00013698,2]
[351997385,1738872638799,-500.0,0.00013698,2]
[351997387,1738872638808,-500.0,0.00013698,2]
[351997389,1738872638817,-500.0,0.00013698,2]
[351997391,1738872638829,-500.0,0.00013698,2]
[351997393,1738872638839,-500.0,0.00013698,2]
[351997395,1738872638849,-500.0,0.00013698,2]
[351997396,1738872638859,-500.0,0.00013698,2]
[351997398,1738872638870,-554.12405265,0.00013698,2]
[351997400,1738872638881,-500.0,0.00013698,2]
[351997402,1738872638890,-500.0,0.00013698,2]
[351997404,1738872638900,-500.0,0.00013698,2]
[351997406,1738872638911,-500.0,0.00013698,2]
[351997408,1738872638921,-500.0,0.00013698,2]
[351997409,1738872638932,-503.97109054,0.00013698,2]
[351997411,1738872638943,-500.0,0.00013698,2]
[351997413,1738872638953,-500.0,0.00013698,2]
[351997415,1738872638963,-500.0,0.00013698,2]
[351997417,1738872638973,-500.0,0.00013698,2]
[351997419,1738872638983,-500.0,0.00013698,2]
[351997421,1738872638992,-500.0,0.00013698,2]
[351997422,1738872639002,-500.0,0.00013698,2]
[351997424,1738872639012,-500.0,0.00013698,2]
[351997426,1738872639022,-500.0,0.00013698,2]
[351997428,1738872639032,-500.0,0.00013698,2]
[351997430,1738872639042,-500.0,0.00013698,2]
[351997432,1738872639051,-500.0,0.00013698,2]
[351997434,1738872639061,-200.42210275,0.00013698,2]
[351997436,1738872639071,-500.0,0.00013698,2]
[351997438,1738872639081,-500.0,0.00013698,2]
[351997440,1738872639091,-500.0,0.00013698,2]
[351997441,1738872639101,-500.0,0.00013698,2]
[351997444,1738872639116,-500.0,0.00013698,2]
[351997446,1738872639126,-500.0,0.00013698,2]
[351997448,1738872639136,-500.0,0.00013698,2]
[351997449,1738872639146,-500.0,0.00013698,2]
[351997451,1738872639156,-500.0,0.00013698,2]
[351997453,1738872639165,-500.0,0.00013698,2]
[351997455,1738872639176,-500.0,0.00013698,2]
[351997457,1738872639187,-500.0,0.00013698,2]
[351997459,1738872639197,-500.0,0.00013698,2]
[351997461,1738872639206,-500.0,0.00013698,2]
[351997463,1738872639216,-500.0,0.00013698,2]
[351997465,1738872639225,-500.0,0.00013698,2]
[351997467,1738872639235,-500.0,0.00013698,2]
[351997468,1738872639244,-500.0,0.00013698,2]
[351997470,1738872639254,-500.0,0.00013698,2]
[351997472,1738872639264,-500.0,0.00013698,2]
[351997474,1738872639274,-500.0,0.00013698,2]
[351997476,1738872639283,-500.0,0.00013698,2]
[351997478,1738872639293,-500.0,0.00013698,2]
[351997480,1738872639302,-426.72372243,0.00013698,2]
[351997482,1738872639314,-500.0,0.00013698,2]
[351997484,1738872639324,-513.79007697,0.00013698,2]
[351997486,1738872639334,-500.0,0.00013698,2]
[351997488,1738872639343,-500.0,0.00013698,2]
[351997490,1738872639353,-500.0,0.00013698,2]
[351997491,1738872639363,-500.0,0.00013698,2]
[351997493,1738872639373,-502.54081061,0.00013698,2]
[351997495,1738872639382,-500.0,0.00013698,2]
[351997497,1738872639393,-500.0,0.00013698,2]
[351997499,1738872639403,-500.0,0.00013698,2]
[351997501,1738872639413,-500.0,0.00013698,2]
[351997503,1738872639423,-500.0,0.00013698,2]
[351997505,1738872639432,-500.0,0.00013698,2]
[351997507,1738872639442,-500.0,0.00013698,2]
[351997509,1738872639452,-500.0,0.00013698,2]
[351997510,1738872639462,-500.0,0.00013698,2]
[351997512,1738872639472,-500.0,0.00013698,2]
[351997514,1738872639481,-500.0,0.00013698,2]
[351997516,1738872639491,-500.0,0.00013698,2]
[351997518,1738872639501,-500.0,0.00013698,2]
[351997520,1738872639510,-500.0,0.00013698,2]
[351997522,1738872639519,-500.0,0.00013698,2]
[351997524,1738872639529,-500.0,0.00013698,2]
[351997526,1738872639539,-500.0,0.00013698,2]
[351997527,1738872639548,-500.0,0.00013698,2]
[351997529,1738872639560,-550.17,0.00013698,2]
[351997531,1738872639570,-500.0,0.00013698,2]
[351997533,1738872639580,-420.45032199,0.00013698,2]
[351997535,1738872639590,-500.0,0.00013698,2]
[351997537,1738872639601,-500.0,0.00013698,2]
[351997539,1738872639611,-500.0,0.00013698,2]
[351997541,1738872639622,-500.0,0.00013698,2]
[351997543,1738872639634,-500.0,0.00013698,2]
[351997545,1738872639643,-500.0,0.00013698,2]
[351997547,1738872639653,-251.62291381,0.00013698,2]
[351997549,1738872639662,-500.0,0.00013698,2]
[351997550,1738872639672,-401.64962618,0.00013698,2]
[351997552,1738872639682,-500.0,0.00013698,2]
[351997554,1738872639692,-500.0,0.00013698,2]
[351997556,1738872639701,-500.0,0.00013698,2]
[351997558,1738872639710,-500.0,0.00013698,2]
[351997560,1738872639721,-500.0,0.00013698,2]
[351997562,1738872639731,-500.0,0.00013698,2]
[351997563,1738872639740,-500.0,0.00013698,2]
[351997565,1738872639750,-500.0,0.00013698,2]
[351997567,1738872639759,-500.0,0.00013698,2]
[351997569,1738872639769,-500.0,0.00013698,2]
[351997571,1738872639779,-500.0,0.00013698,2]
[351997573,1738872639789,-500.0,0.00013698,2]
[351997575,1738872639799,-500.0,0.00013698,2]
[351997577,1738872639809,-500.0,0.00013698,2]
[351997578,1738872639819,-500.0,0.00013698,2]
[351997580,1738872639828,-500.0,0.00013698,2]
[351997582,1738872639839,-500.0,0.00013698,2]
[351997584,1738872639848,-500.0,0.00013698,2]
[351997586,1738872639858,-500.0,0.00013698,2]
[351997588,1738872639868,-500.0,0.00013698,2]
[351997590,1738872639878,-500.0,0.00013698,2]
[351997592,1738872639888,-500.0,0.00013698,2]
[351997594,1738872639898,-500.0,0.00013698,2]
[351997596,1738872639909,-500.0,0.00013698,2]
[351997598,1738872639919,-500.0,0.00013698,2]
[351997600,1738872639929,-500.0,0.00013698,2]
[351997601,1738872639938,-500.0,0.00013698,2]
[351997603,1738872639947,-500.0,0.00013698,2]
[351997605,1738872639959,-500.0,0.00013698,2]
[351997607,1738872639978,-500.0,0.00013698,2]
[351997609,1738872639988,-525.13864355,0.00013698,2]
[351997611,1738872639998,-500.0,0.00013698,2]
[351997613,1738872640009,-500.0,0.00013698,2]
[351997615,1738872640021,-500.0,0.00013698,2]
[351997617,1738872640032,-500.0,0.00013698,2]
[351997619,1738872640042,-500.0,0.00013698,2]
[351997622,1738872640052,-501.09459429,0.00013698,2]
[351997625,1738872640061,-500.0,0.00013698,2]
[351997627,1738872640071,-500.0,0.00013698,2]
[351997628,1738872640081,-500.0,0.00013698,2]
[351997630,1738872640090,-500.0,0.00013698,2]
[351997632,1738872640100,-506.00388029,0.00013698,2]
[351997634,1738872640109,-500.0,0.00013698,2]
[351997636,1738872640119,-500.0,0.00013698,2]
[351997638,1738872640129,-500.0,0.00013698,2]
[351997640,1738872640139,-500.0,0.00013698,2]
[351997642,1738872640148,-500.0,0.00013698,2]
[351997644,1738872640158,-500.0,0.00013698,2]
[351997645,1738872640167,-500.0,0.00013698,2]
[351997647,1738872640177,-500.0,0.00013698,2]
[351997649,1738872640187,-500.0,0.00013698,2]
[351997651,1738872640198,-500.0,0.00013698,2]
[351997653,1738872640208,-500.0,0.00013698,2]
[351997655,1738872640218,-500.0,0.00013698,2]
[351997657,1738872640229,-500.0,0.00013698,2]
[351997659,1738872640239,-504.39845827,0.00013698,2]
[351997661,1738872640250,-500.0,0.00013698,2]
[351997663,1738872640262,-358.05466436,0.00013698,2]
[351997665,1738872640273,-500.0,0.00013698,2]
[351997667,1738872640282,-500.0,0.00013698,2]
[351997669,1738872640292,-500.0,0.00013698,2]
[351997670,1738872640302,-500.0,0.00013698,2]
[351997672,1738872640311,-500.0,0.00013698,2]
[351997674,1738872640321,-500.0,0.00013698,2]
[351997676,1738872640332,-500.0,0.00013698,2]
[351997678,1738872640341,-500.0,0.00013698,2]
[351997680,1738872640351,-500.0,0.00013698,2]
[351997682,1738872640360,-500.0,0.00013698,2]
[351997684,1738872640370,-500.0,0.00013698,2]
[351997686,1738872640380,-500.0,0.00013698,2]
[351997688,1738872640390,-500.0,0.00013698,2]
[351997690,1738872640400,-500.0,0.00013698,2]
[351997692,1738872640409,-500.0,0.00013698,2]
[351997693,1738872640419,-500.0,0.00013698,2]
[351997695,1738872640429,-500.0,0.00013698,2]
[351997697,1738872640438,-500.0,0.00013698,2]
[351997699,1738872640448,-500.0,0.00013698,2]
[351997701,1738872640458,-500.0,0.00013698,2]
[351997703,1738872640468,-500.0,0.00013698,2]
[351997705,1738872640478,-500.0,0.00013698,2]
[351997707,1738872640487,-500.0,0.00013698,2]
[351997709,1738872640497,-500.0,0.00013698,2]
[351997711,1738872640507,-500.0,0.00013698,2]
[351997713,1738872640517,-500.0,0.00013698,2]
[351997715,1738872640527,-4597.74,0.00013698,2]
[351997717,1738872640536,-500.0,0.00013698,2]
[351997719,1738872640546,-500.0,0.00013698,2]
[351997721,1738872640557,-500.0,0.00013698,2]
[351997722,1738872640569,-500.0,0.00013698,2]
[351997724,1738872640579,-500.0,0.00013698,2]
[351997726,1738872640588,-500.0,0.00013698,2]
[351997728,1738872640598,-500.0,0.00013698,2]
[351997730,1738872640607,-500.0,0.00013698,2]
[351997732,1738872640617,-500.0,0.00013698,2]
[351997734,1738872640626,-500.0,0.00013698,2]
[351997736,1738872640637,-500.0,0.00013698,2]
[351997738,1738872640646,-500.0,0.00013698,2]
[351997740,1738872640656,-500.0,0.00013698,2]
[351997742,1738872640666,-503.11123281,0.00013698,2]
[351997744,1738872640676,-1229.93,0.00013698,2]
[351997745,1738872640686,-882.67,0.00013698,2]
[351997747,1738872640696,-500.0,0.00013698,2]
[351997749,1738872640705,-500.0,0.00013698,2]
[351997751,1738872640715,-500.0,0.00013698,2]
[351997753,1738872640724,-500.0,0.00013698,2]
[351997755,1738872640733,-500.0,0.00013698,2]
[351997757,1738872640743,-500.0,0.00013698,2]
[351997758,1738872640752,-500.0,0.00013698,2]
[351997760,1738872640762,-500.0,0.00013698,2]
[351997762,1738872640771,-500.0,0.00013698,2]
[351997764,1738872640781,-1284.43,0.00013698,2]
[351997766,1738872640791,-1284.43,0.00013698,2]
[351997768,1738872640801,-1284.43,0.00013698,2]
[351997770,1738872640811,-1284.43,0.00013698,2]
[351997772,1738872640821,-1284.43,0.00013698,2]
[351997774,1738872640830,-1284.43,0.00013698,2]
[351997775,1738872640839,-500.0,0.00013698,2]
[351997776,1738872640847,-1284.43,0.00013698,2]
[351997777,1738872640856,-1284.43,0.00013698,2]
[351997778,1738872640865,-1284.43,0.00013698,2]
[351997779,1738872640874,-500.0,0.00013698,2]
[351997780,1738872640883,-500.0,0.00013698,2]
[351997781,1738872640892,-500.0,0.00013698,2]
[351997782,1738872640901,-500.0,0.00013698,2]
[351997783,1738872640910,-500.0,0.00013698,2]
[351997784,1738872640919,-500.0,0.00013698,2]
[351997785,1738872640927,-259.82679035,0.00013698,2]
[351997786,1738872640936,-500.0,0.00013698,2]
[351997787,1738872640945,-500.0,0.00013698,2]
[351997788,1738872640955,-500.0,0.00013698,2]
[351997789,1738872640964,-568.31187269,0.00013698,2]
[351997790,1738872640973,-500.0,0.00013698,2]
[351997791,1738872640982,-500.0,0.00013698,2]
[351997792,1738872640991,-500.0,0.00013698,2]
[351997793,1738872641000,-500.0,0.00013698,2]
[351997794,1738872641009,-500.0,0.00013698,2]
[351997795,1738872641019,-500.0,0.00013698,2]
[351997796,1738872641028,-500.0,0.00013698,2]
[351997797,1738872641038,-500.0,0.00013698,2]
[351997798,1738872641048,-500.0,0.00013698,2]
[351997799,1738872641057,-500.0,0.00013698,2]
[351997800,1738872641066,-502.52711191,0.00013698,2]
[351997801,1738872641075,-500.0,0.00013698,2]
[351997802,1738872641084,-500.0,0.00013698,2]
[351997803,1738872641093,-500.0,0.00013698,2]
[351997804,1738872641102,-500.0,0.00013698,2]
[351997805,1738872641112,-500.0,0.00013698,2]
[351997806,1738872641121,-500.0,0.00013698,2]
[351997807,1738872641130,-500.0,0.00013698,2]
[351997808,1738872641140,-500.0,0.00013698,2]
[351997810,1738872641149,-500.0,0.00013698,2]
[351997830,1738872641325,-500.0,0.00013698,2]
[351997832,1738872641337,-500.0,0.00013698,2]
[351997834,1738872641349,-459.80232927,0.00013698,2]
[351997835,1738872641359,-510.30258903,0.00013698,2]
[351997836,1738872641369,-500.0,0.00013698,2]
[351997837,1738872641379,-503.54426953,0.00013698,2]
[351997838,1738872641390,-500.0,0.00013698,2]
[351997839,1738872641400,-500.0,0.00013698,2]
[351997840,1738872641416,-500.0,0.00013698,2]
[351997841,1738872641425,-500.0,0.00013698,2]
[351997842,1738872641435,-500.0,0.00013698,2]
[351997843,1738872641445,-500.0,0.00013698,2]
[351997844,1738872641455,-500.0,0.00013698,2]
[351997845,1738872641465,-778.92,0.00013698,2]
[351997846,1738872641475,-500.0,0.00013698,2]
[351997847,1738872641484,-500.0,0.00013698,2]
[351997848,1738872641494,-500.0,0.00013698,2]
[351997849,1738872641504,-500.0,0.00013698,2]
[351997850,1738872641513,-500.0,0.00013698,2]
[351997851,1738872641523,-500.0,0.00013698,2]
[351997852,1738872641532,-500.0,0.00013698,2]
[351997853,1738872641544,-500.0,0.00013698,2]
[351997854,1738872641555,-500.0,0.00013698,2]
[351997855,1738872641565,-500.0,0.00013698,2]
[351997856,1738872641574,-500.0,0.00013698,2]
[351997858,1738872641584,-500.0,0.00013698,2]
[351997860,1738872641595,-500.0,0.00013698,2]
[351997862,1738872641604,-500.0,0.00013698,2]
[351997864,1738872641614,-763.38,0.00013698,2]
[351997866,1738872641623,-503.66489458,0.00013698,2]
[351997868,1738872641634,-500.0,0.00013698,2]
[351997870,1738872641643,-500.0,0.00013698,2]
[351997872,1738872641653,-500.0,0.00013698,2]
[351997874,1738872641662,-500.0,0.00013698,2]
[351997876,1738872641671,-500.0,0.00013698,2]
[351997878,1738872641680,-500.0,0.00013698,2]
[351997880,1738872641690,-500.0,0.00013698,2]
[351997882,1738872641699,-2406.64,0.00013698,2]
[351997884,1738872641709,-500.0,0.00013698,2]
[351997885,1738872641719,-500.0,0.00013698,2]
[351997886,1738872641728,-471.4,0.00013698,2]
[351997887,1738872641739,-500.0,0.00013698,2]
[351997888,1738872641748,-502.66,0.00013698,2]
[351997889,1738872641758,-500.0,0.00013698,2]
[351997890,1738872641768,-500.0,0.00013698,2]
[351997891,1738872641777,-500.0,0.00013698,2]
[351997892,1738872641787,-500.0,0.00013698,2]
[351997893,1738872641796,-3308.01,0.00013698,2]
[351997894,1738872641807,-503.39767878,0.00013698,2]
[351997895,1738872641817,-500.0,0.00013698,2]
[351997896,1738872641826,-199.83306714,0.00013698,2]
[351997897,1738872641835,-500.0,0.00013698,2]
[351997898,1738872641845,-500.0,0.00013698,2]
[351997899,1738872641854,-743.51,0.00013698,2]
[351997900,1738872641863,-500.0,0.00013698,2]
[351997901,1738872641873,-500.0,0.00013698,2]